bitfinex/quotes_BTCUSD_20250831
["timestamp","ask_amount","ask_price","bid_price","bid_amount"]
[1756605490501,1.16625709,109670.0,109660.0,0.22886]
[1756605493492,1.16625709,109670.0,109660.0,0.07538]
[1756605493730,1.16625709,109670.0,109660.0,0.22882]
[1756605494170,1.16627412,109670.0,109660.0,0.22882]
[1756605498783,1.16825412,109670.0,109660.0,0.22882]
[1756605500377,1.16825412,109670.0,109660.0,0.07538]
[1756605500592,1.16825412,109670.0,109660.0,0.22352]
[1756605501404,1.16825412,109670.0,109660.0,0.22652]
[1756605501615,1.16825412,109670.0,109660.0,0.22352]
[1756605502071,1.16825412,109670.0,109660.0,0.22866]
[1756605503839,1.16825412,109670.0,109660.0,0.22652]
[1756605504715,1.14828144,109670.0,109660.0,0.22652]
[1756605504932,1.16826046,109670.0,109660.0,0.22652]
[1756605505676,1.16826055,109670.0,109660.0,0.07012]
[1756605505910,1.16826055,109670.0,109660.0,0.22352]
[1756605506427,1.16826055,109670.0,109660.0,0.22652]
[1756605506623,1.16628055,109670.0,109660.0,0.22866]
[1756605511932,1.16628082,109670.0,109660.0,0.22866]
[1756605514986,1.16628082,109670.0,109660.0,0.4110419]
[1756605515154,1.16628082,109670.0,109660.0,0.22866]
[1756605515536,1.16342588,109670.0,109660.0,0.4110419]
[1756605515743,1.16628069,109670.0,109660.0,0.22866]
[1756605516143,1.159859,109670.0,109660.0,0.22866]
[1756605516482,1.159859,109670.0,109660.0,0.4110419]
[1756605516886,1.159859,109670.0,109660.0,0.22866]
[1756605522610,1.159859,109670.0,109660.0,0.22858]
[1756605523202,1.161839,109670.0,109660.0,0.07312]
[1756605523408,1.16825796,109670.0,109660.0,0.22344]
[1756605524084,1.16825796,109670.0,109660.0,0.22858]
[1756605524619,1.16825796,109670.0,109660.0,0.22644]
[1756605525569,0.57916232,109670.0,109660.0,0.22858]
[1756605525811,1.16825796,109670.0,109660.0,0.22858]
[1756605526211,1.16539685,109670.0,109660.0,0.22858]
[1756605526477,1.16825168,109670.0,109660.0,0.15846]
[1756605526676,1.16825168,109670.0,109660.0,0.15632]
[1756605527013,1.16825168,109670.0,109660.0,0.15846]
[1756605527635,1.16825174,109670.0,109660.0,0.15846]
[1756605528466,1.16183252,109670.0,109660.0,0.15846]
[1756605528790,1.1682518,109670.0,109660.0,0.15846]
[1756605531657,1.168252,109670.0,109660.0,0.15846]
[1756605531864,1.16183252,109670.0,109660.0,0.15846]
[1756605532069,1.16183252,109670.0,109650.0,0.0733]
[1756605532070,0.1823819,109660.0,109650.0,0.0733]
[1756605532236,0.77631237,109660.0,109650.0,0.16837001]
[1756605532443,0.77631237,109660.0,109650.0,0.32165001]
[1756605532643,0.77433237,109660.0,109650.0,0.32165001]
[1756605533905,0.77433237,109660.0,109650.0,0.32365001]
[1756605536901,0.7743324,109660.0,109650.0,0.32365001]
[1756605539248,0.7743324,109660.0,109650.0,0.17037001]
[1756605539467,0.79343498,109660.0,109650.0,0.31842001]
[1756605539669,1.4554038,109660.0,109650.0,0.07216]
[1756605539873,1.46182506,109660.0,109650.0,0.22544]
[1756605540659,1.46182506,109660.0,109650.0,0.22344]
[1756605542268,1.4554038,109660.0,109650.0,0.22344]
[1756605544044,1.46182162,109660.0,109650.0,0.2234]
[1756605544253,1.4554038,109660.0,109650.0,0.2234]
[1756605546304,0.57174787,109660.0,109650.0,0.22863]
[1756605546514,1.45539133,109660.0,109650.0,0.2234]
[1756605546895,1.45538992,109660.0,109650.0,0.2234]
[1756605547297,1.45538992,109660.0,109650.0,0.22863]
[1756605553332,1.4382815,109660.0,109650.0,0.22863]
[1756605553528,1.45538739,109660.0,109650.0,0.22863]
[1756605554158,1.16083957,109660.0,109650.0,0.22863]
[1756605555786,1.45538739,109660.0,109650.0,0.22863]
[1756605556911,1.4382815,109660.0,109650.0,0.22863]
[1756605557179,1.45538771,109660.0,109650.0,0.22863]
[1756605559019,1.15885989,109660.0,109650.0,0.22863]
[1756605560594,1.15798478,109660.0,109650.0,0.22863]
[1756605560808,1.16083989,109660.0,109650.0,0.22863]
[1756605563160,0.56976425,109660.0,109650.0,0.22863]
[1756605563560,1.15885989,109660.0,109650.0,0.22863]
[1756605564796,0.56976425,109660.0,109650.0,0.22863]
[1756605564999,1.15885989,109660.0,109650.0,0.22863]
[1756605565152,1.16083989,109660.0,109650.0,0.22863]
[1756605566409,1.16725879,109660.0,109650.0,0.22863]
[1756605567614,1.16243705,109660.0,109650.0,0.22863]
[1756605567762,1.16529311,109660.0,109650.0,0.22863]
[1756605567966,1.46182093,109660.0,109650.0,0.07016]
[1756605568168,1.46182093,109660.0,109650.0,0.22336]
[1756605569295,1.46282093,109660.0,109650.0,0.22653]
[1756605569499,1.16827311,109660.0,109650.0,0.22653]
[1756605570202,1.16927311,109660.0,109650.0,0.22653]
[1756605570884,1.16927311,109660.0,109650.0,0.22867]
[1756605571443,1.16928087,109660.0,109650.0,0.22867]
[1756605572537,1.16730087,109660.0,109650.0,0.22867]
[1756605573240,1.16928087,109660.0,109650.0,0.22867]
[1756605578367,1.16000591,109660.0,109650.0,0.22867]
[1756605578572,1.16928255,109660.0,109650.0,0.22867]
[1756605579179,1.16928255,109660.0,109650.0,0.07547]
[1756605579357,1.16928255,109660.0,109650.0,0.22863]
[1756605581611,0.96006115,109660.0,109650.0,0.22863]
[1756605581873,1.14244305,109660.0,109650.0,0.22863]
[1756605582215,1.14244295,109660.0,109650.0,0.22863]
[1756605583808,1.14244295,109660.0,109650.0,0.07547]
[1756605584016,1.14244295,109660.0,109650.0,0.22863]
[1756605585594,1.14244298,109660.0,109650.0,0.22863]
[1756605586418,1.4369908,109660.0,109650.0,0.22863]
[1756605587659,1.4369908,109660.0,109650.0,0.07547]
[1756605587815,1.1238303,109660.0,109650.0,0.22863]
[1756605589034,1.1238303,109660.0,109650.0,0.07016]
[1756605589216,1.12383094,109660.0,109650.0,0.22332]
[1756605589678,5.68232694,109660.0,109650.0,0.07016]
[1756605589909,0.18241517,109640.0,109630.0,0.29262]
[1756605590090,1.08802085,109640.0,109630.0,0.22654]
[1756605590560,1.11544785,109640.0,109630.0,0.22654]
[1756605591196,0.82090003,109640.0,109630.0,0.22754]
[1756605591384,0.82094761,109640.0,109630.0,0.22754]
[1756605591736,1.16094761,109640.0,109630.0,0.22432]
[1756605592146,1.16094761,109640.0,109630.0,0.22532]
[1756605592754,1.16094761,109640.0,109630.0,0.22432]
[1756605592975,1.16094761,109640.0,109630.0,0.07438]
[1756605593183,1.16094761,109640.0,109630.0,0.22754]
[1756605593600,1.16094761,109640.0,109630.0,0.22956]
[1756605593778,1.16094761,109640.0,109630.0,0.22856]
[1756605594246,1.14382059,109640.0,109630.0,0.22856]
[1756605599870,1.14382098,109640.0,109630.0,0.22856]
[1756605601068,1.14382098,109640.0,109630.0,0.22332]
[1756605601283,1.52477909,109640.0,109630.0,0.07016]
[1756605601493,1.45546723,109640.0,109630.0,0.22328]
[1756605604597,1.45546723,109640.0,109630.0,0.2265]
[1756605604797,1.16091941,109640.0,109630.0,0.2265]
[1756605605433,1.16091941,109640.0,109630.0,0.22852]
[1756605605640,1.16091388,109640.0,109630.0,0.22852]
[1756605606022,1.15893388,109640.0,109630.0,0.22852]
[1756605606178,1.14184098,109640.0,109630.0,0.47150001]
[1756605606379,1.13898539,109640.0,109630.0,0.32150001]
[1756605607025,1.13898539,109640.0,109630.0,0.50393182]
[1756605609053,0.79898539,109640.0,109630.0,0.50393182]
[1756605609443,0.20988975,109640.0,109630.0,0.50393182]
[1756605609646,0.79898539,109640.0,109630.0,0.50393182]
[1756605611819,0.2945954,109640.0,109630.0,0.50393182]
[1756605612033,4.758e-05,109640.0,109630.0,0.50393182]
[1756605612413,0.58914322,109640.0,109630.0,0.50393182]
[1756605612984,4.758e-05,109640.0,109630.0,0.50393182]
[1756605613190,0.2945954,109640.0,109630.0,0.50393182]
[1756605613711,0.58914322,109640.0,109630.0,0.50393182]
[1756605614346,0.77155839,109640.0,109630.0,0.50393182]
[1756605614570,0.58914322,109640.0,109630.0,0.50393182]
[1756605614747,0.77155839,109640.0,109630.0,0.53135782]
[1756605615734,0.58914322,109640.0,109630.0,0.53135782]
[1756605615944,4.758e-05,109640.0,109630.0,0.53135782]
[1756605616157,0.58914322,109640.0,109630.0,0.53135782]
[1756605616373,0.2945954,109640.0,109630.0,0.53135782]
[1756605616588,0.2945954,109640.0,109630.0,0.55229664]
[1756605617320,0.2945954,109640.0,109630.0,0.39917664]
[1756605617527,0.2945954,109640.0,109630.0,0.55225664]
[1756605617700,0.58914322,109640.0,109630.0,0.55225664]
[1756605618210,0.58914322,109640.0,109630.0,0.55325664]
[1756605618387,0.58914322,109640.0,109630.0,0.55425664]
[1756605620287,0.77155839,109640.0,109630.0,0.40117664]
[1756605620496,0.77155839,109640.0,109630.0,0.55425664]
[1756605620886,0.77155839,109640.0,109630.0,0.40117664]
[1756605621293,1.06808621,109640.0,109630.0,0.252666]
[1756605621553,1.40949621,109640.0,109630.0,0.22524]
[1756605621806,1.42945406,109640.0,109630.0,0.22524]
[1756605622012,1.1163939,109640.0,109630.0,0.22524]
[1756605622191,1.1438209,109640.0,109630.0,0.22524]
[1756605622547,1.16092347,109640.0,109630.0,0.22524]
[1756605623021,1.16092347,109640.0,109630.0,0.07216]
[1756605623438,1.45688129,109640.0,109630.0,0.07216]
[1756605623652,1.45688129,109640.0,109630.0,0.22524]
[1756605625481,6.01396729,109640.0,109630.0,0.15508]
[1756605626593,6.02038059,109640.0,109630.0,0.15408]
[1756605627244,5.13673713,109640.0,109630.0,0.15408]
[1756605627460,1.46329459,109640.0,109630.0,0.15308]
[1756605627967,1.46288459,109640.0,109630.0,0.15308]
[1756605628396,1.46288459,109640.0,109620.0,0.00307]
[1756605628397,0.18243181,109630.0,109620.0,0.00307]
[1756605628600,0.77152745,109630.0,109620.0,0.15615]
[1756605628733,0.77350745,109630.0,109620.0,0.15818]
[1756605630390,0.80093745,109630.0,109620.0,0.15818]
[1756605633718,0.79895745,109630.0,109620.0,0.15818]
[1756605633886,0.52246275,109640.0,109620.0,0.43360846]
[1756605634061,0.36000155,109640.0,109630.0,0.18550181]
[1756605634238,0.04742955,109640.0,109630.0,0.28051182]
[1756605634454,4.758e-05,109640.0,109630.0,0.32887664]
[1756605634673,0.2945954,109640.0,109630.0,0.30145064]
[1756605635386,0.39382381,109640.0,109630.0,0.30145064]
[1756605636001,0.39482381,109640.0,109630.0,0.30145064]
[1756605636199,0.00204758,109640.0,109630.0,0.30145064]
[1756605636591,0.00104758,109640.0,109630.0,0.30145064]
[1756605636791,0.00204758,109640.0,109630.0,0.30145064]
[1756605637475,0.39482381,109640.0,109630.0,0.30145064]
[1756605637668,0.39382381,109640.0,109630.0,0.30145064]
[1756605637867,0.00104758,109640.0,109630.0,0.30145064]
[1756605638088,0.39382381,109640.0,109630.0,0.30145064]
[1756605638517,0.39482381,109640.0,109630.0,0.30145064]
[1756605638721,0.39382381,109640.0,109630.0,0.30145064]
[1756605638934,0.39282381,109640.0,109630.0,0.30145064]
[1756605639139,0.39382381,109640.0,109630.0,0.30145064]
[1756605639824,0.39282381,109640.0,109630.0,0.30145064]
[1756605639978,0.39282381,109640.0,109630.0,0.30245064]
[1756605640833,0.39282381,109640.0,109630.0,0.30345064]
[1756605642848,4.758e-05,109640.0,109630.0,0.30345064]
[1756605643070,0.39282381,109640.0,109630.0,0.30345064]
[1756605645213,0.39282381,109640.0,109630.0,0.45961064]
[1756605645916,0.39282381,109640.0,109630.0,0.30345064]
[1756605646121,0.39282381,109640.0,109630.0,0.45953064]
[1756605646902,0.57523898,109640.0,109630.0,0.30345064]
[1756605647112,0.57523898,109640.0,109630.0,0.45957064]
[1756605648457,0.57721898,109640.0,109630.0,0.28048182]
[1756605648666,0.57721898,109640.0,109630.0,0.43349182]
[1756605649329,0.91721898,109640.0,109630.0,0.15852]
[1756605649539,0.91862898,109640.0,109630.0,0.22868]
[1756605650536,0.91721898,109640.0,109630.0,0.22868]
[1756605650745,0.52444275,109640.0,109630.0,0.22768]
[1756605650975,0.91721898,109640.0,109630.0,0.22768]
[1756605651509,0.91821898,109640.0,109630.0,0.22768]
[1756605651711,0.91821898,109640.0,109630.0,0.40911181]
[1756605651911,0.91821898,109640.0,109630.0,0.41414181]
[1756605652767,0.91721898,109640.0,109630.0,0.41414181]
[1756605653131,0.91821898,109640.0,109630.0,0.41414181]
[1756605653346,0.52346275,109640.0,109630.0,0.41414181]
[1756605653556,0.91623898,109640.0,109630.0,0.41414181]
[1756605653748,0.91821898,109640.0,109630.0,0.41414181]
[1756605654450,0.52544275,109640.0,109630.0,0.41414181]
[1756605654657,0.91821898,109640.0,109630.0,0.41414181]
[1756605655889,0.91821898,109640.0,109630.0,0.23171]
[1756605656743,0.91821898,109640.0,109630.0,0.2297]
[1756605658146,0.52544275,109640.0,109630.0,0.23171]
[1756605658353,0.91821898,109640.0,109630.0,0.41414181]
[1756605658931,0.91821898,109640.0,109630.0,0.2264]
[1756605659316,0.92107438,109640.0,109630.0,0.2264]
[1756605660569,0.52829815,109640.0,109630.0,0.41386181]
[1756605660791,0.92107438,109640.0,109630.0,0.23139]
[1756605661122,0.92107438,109640.0,109630.0,0.22938]
[1756605661299,0.92107438,109640.0,109630.0,0.23139]
[1756605661503,1.11759309,109640.0,109630.0,0.41382181]
[1756605663596,1.11759306,109640.0,109630.0,0.41382181]
[1756605663792,0.52829812,109640.0,109630.0,0.41382181]
[1756605663995,1.11561306,109640.0,109630.0,0.41382181]
[1756605664182,0.52631812,109640.0,109630.0,0.41382181]
[1756605664392,1.11561306,109640.0,109630.0,0.41382181]
[1756605664626,0.52631812,109640.0,109630.0,0.41382181]
[1756605664829,1.11561306,109640.0,109630.0,0.41378181]
[1756605665498,1.11759306,109640.0,109630.0,0.41378181]
[1756605666383,1.11759306,109640.0,109630.0,0.25762181]
[1756605666688,1.11759306,109640.0,109630.0,0.41378181]
[1756605666890,1.11759306,109640.0,109630.0,0.25762181]
[1756605667183,1.11759306,109640.0,109630.0,0.41374181]
[1756605670078,0.52829812,109640.0,109630.0,0.41374181]
[1756605670305,1.11561306,109640.0,109630.0,0.41374181]
[1756605671462,0.52631812,109640.0,109630.0,0.41374181]
[1756605671635,1.11561306,109640.0,109630.0,0.41374181]
[1756605673304,0.34390295,109640.0,109630.0,0.41374181]
[1756605673897,0.93319789,109640.0,109630.0,0.41374181]
[1756605674981,0.34390295,109640.0,109630.0,0.41374181]
[1756605675167,0.29855042,109640.0,109630.0,0.50672182]
[1756605675907,0.00390295,109640.0,109630.0,0.50672182]
[1756605676127,0.29855042,109640.0,109630.0,0.50672182]
[1756605676249,0.00390295,109640.0,109630.0,0.50672182]
[1756605676707,0.29855042,109640.0,109630.0,0.50672182]
[1756605677113,0.00390295,109640.0,109630.0,0.50672182]
[1756605677318,0.29855042,109640.0,109630.0,0.50672182]
[1756605677818,0.29855034,109640.0,109630.0,0.50672182]
[1756605678941,0.59319781,109640.0,109630.0,0.50672182]
[1756605680988,0.00285529,109640.0,109630.0,0.50672182]
[1756605681237,0.29750276,109640.0,109630.0,0.50672182]
[1756605681774,0.00285529,109640.0,109630.0,0.35060182]
[1756605681975,0.52240388,109650.0,109640.0,0.18241517]
[1756605682199,0.82188655,109650.0,109640.0,0.18758807]
[1756605682418,0.84931155,109650.0,109640.0,0.18758807]
[1756605682675,0.66690767,109650.0,109640.0,0.18758807]
[1756605682869,0.82188121,109650.0,109640.0,0.18758807]
[1756605683075,0.81990121,109650.0,109640.0,0.18758807]
[1756605683276,0.52625374,109650.0,109640.0,0.18758807]
[1756605683476,0.82190121,109650.0,109640.0,0.18758807]
[1756605683776,0.82388121,109650.0,109640.0,0.34322807]
[1756605684860,0.82102601,109650.0,109640.0,0.34322807]
[1756605685066,0.82388114,109650.0,109640.0,0.34322807]
[1756605685809,0.82388114,109650.0,109640.0,0.34310807]
[1756605686002,0.82388114,109650.0,109640.0,0.18758807]
[1756605686249,0.82388114,109650.0,109640.0,0.34310807]
[1756605686465,0.82388114,109650.0,109640.0,0.18758807]
[1756605686844,0.82388114,109650.0,109640.0,0.1585529]
[1756605687529,0.82388114,109650.0,109640.0,0.0001429]
[1756605687730,0.82388114,109650.0,109640.0,0.1556229]
[1756605689599,0.52923367,109650.0,109640.0,0.1556229]
[1756605689805,0.82388114,109650.0,109640.0,0.1556229]
[1756605690044,0.52923367,109650.0,109640.0,0.1606529]
[1756605690247,0.48388114,109650.0,109640.0,0.1557829]
[1756605691322,0.48388114,109650.0,109640.0,0.1587129]
[1756605692147,0.82388114,109650.0,109640.0,0.1587129]
[1756605692321,0.82388114,109650.0,109640.0,0.1608129]
[1756605694173,0.82388114,109650.0,109640.0,0.1587129]
[1756605694634,1.11852861,109650.0,109640.0,0.1587129]
[1756605695141,1.14595361,109650.0,109640.0,0.0030729]
[1756605695357,1.14595361,109650.0,109640.0,0.1585529]
[1756605695561,1.14309848,109650.0,109640.0,0.1606529]
[1756605695771,1.14595364,109650.0,109640.0,0.0001429]
[1756605695980,1.14595364,109650.0,109640.0,0.1606129]
[1756605696614,0.5566587,109650.0,109640.0,0.1606129]
[1756605696835,1.14595364,109650.0,109640.0,0.1606129]
[1756605699177,0.84932617,109650.0,109640.0,0.1606129]
[1756605699391,0.84932615,109650.0,109640.0,0.1606129]
[1756605699907,0.85130615,109650.0,109640.0,0.1606129]
[1756605700314,1.14595362,109650.0,109640.0,0.1606129]
[1756605702511,1.14595362,109650.0,109640.0,0.2307729]
[1756605704653,1.14595362,109650.0,109640.0,0.2257429]
[1756605704858,1.14595362,109650.0,109640.0,0.2286729]
[1756605706288,1.14595364,109650.0,109640.0,0.2286729]
[1756605707859,1.14595364,109650.0,109640.0,0.2307729]
[1756605708042,1.14397364,109650.0,109640.0,0.2307729]
[1756605708241,1.14595364,109650.0,109640.0,0.2307729]
[1756605709325,1.14595364,109650.0,109640.0,0.0732329]
[1756605709557,1.14595364,109650.0,109640.0,0.2283129]
[1756605711376,1.14595364,109650.0,109640.0,0.2253829]
[1756605711567,1.14595364,109650.0,109640.0,0.2253029]
[1756605711905,1.14595364,109650.0,109640.0,0.1551429]
[1756605712114,1.14595364,109650.0,109640.0,0.1582329]
[1756605712528,0.5566587,109650.0,109640.0,0.1602929]
[1756605712728,1.14595364,109650.0,109640.0,0.1582329]
[1756605713550,1.14595364,109650.0,109640.0,0.0032329]
[1756605713760,1.14595364,109650.0,109640.0,0.1581529]
[1756605714070,1.14595364,109650.0,109640.0,0.0032329]
[1756605714286,1.14595364,109650.0,109640.0,0.1581129]
[1756605714882,1.14595364,109650.0,109640.0,0.0032329]
[1756605715147,1.14736364,109650.0,109640.0,0.1550229]
[1756605715374,1.14736364,109650.0,109640.0,0.0001429]
[1756605715584,1.16449345,109650.0,109640.0,0.1549829]
[1756605716015,1.46556472,109650.0,109640.0,0.1550629]
[1756605716475,1.50709743,109650.0,109640.0,0.1550229]
[1756605716936,1.48996762,109650.0,109640.0,0.1550229]
[1756605717132,1.5070878,109650.0,109640.0,0.1550229]
[1756605717368,1.21244033,109650.0,109640.0,0.1550229]
[1756605717572,1.21243804,109650.0,109640.0,0.1550229]
[1756605718505,1.21243804,109650.0,109640.0,0.0001429]
[1756605718712,1.21243804,109650.0,109640.0,0.1550229]
[1756605719131,1.50708551,109650.0,109640.0,0.1550229]
[1756605720058,1.50708551,109650.0,109640.0,0.0001429]
[1756605720268,1.50708551,109650.0,109640.0,0.1549829]
[1756605720501,6.06417151,109650.0,109640.0,0.1549829]
[1756605720739,6.06417151,109650.0,109640.0,0.1549429]
[1756605724119,6.15715152,109650.0,109640.0,0.1548629]
[1756605724594,6.15715152,109650.0,109640.0,0.0001429]
[1756605724595,6.31187152,109650.0,109640.0,0.0001429]
[1756605724777,6.40016784,109650.0,109640.0,0.0001429]
[1756605725768,6.15715152,109650.0,109640.0,0.0001429]
[1756605726083,6.31191152,109650.0,109640.0,0.0001429]
[1756605726295,6.30549284,109650.0,109640.0,0.0001429]
[1756605726495,6.31187628,109650.0,109640.0,0.0001429]
[1756605727354,6.31187423,109650.0,109640.0,0.0001429]
[1756605727571,6.31183423,109650.0,109640.0,0.0001429]
[1756605729450,6.15711423,109650.0,109640.0,0.0001429]
[1756605729642,6.31034423,109650.0,109640.0,0.0001429]
[1756605729798,6.15570423,109650.0,109640.0,0.0001429]
[1756605732918,6.15570423,109650.0,109640.0,0.0032329]
[1756605733150,6.15570423,109650.0,109640.0,0.0001429]
[1756605734900,0.52244845,109620.0,109610.0,0.00309]
[1756605735111,0.1824651,109610.0,109600.0,0.22809]
[1756605735314,0.78885316,109610.0,109600.0,0.22813758]
[1756605735447,0.81628816,109610.0,109600.0,0.07535758]
[1756605735672,0.81914457,109610.0,109600.0,0.23023758]
[1756605736313,0.81628816,109610.0,109600.0,0.23019758]
[1756605737030,0.79919504,109610.0,109600.0,0.23123758]
[1756605737240,0.8172735,109610.0,109600.0,0.23123758]
[1756605737468,1.01431702,109610.0,109600.0,0.23023758]
[1756605738228,1.02590301,109610.0,109600.0,0.07535758]
[1756605738400,1.02590301,109610.0,109600.0,0.23023758]
[1756605739463,1.02875948,109610.0,109600.0,0.07535758]
[1756605739662,1.02875948,109610.0,109600.0,0.23023758]
[1756605740045,1.46895948,109610.0,109600.0,0.07535758]
[1756605740249,1.8972558,109610.0,109600.0,4.758e-05]
[1756605740666,1.81535965,109610.0,109600.0,4.758e-05]
[1756605741187,1.80895965,109610.0,109600.0,4.758e-05]
[1756605741360,1.81535854,109610.0,109600.0,4.758e-05]
[1756605741728,1.81339854,109610.0,109600.0,0.00506758]
[1756605742143,1.81537854,109610.0,109600.0,0.00506758]
[1756605742574,1.81339854,109610.0,109600.0,0.00506758]
[1756605743514,1.42022931,109610.0,109600.0,0.00506758]
[1756605743695,1.41383042,109610.0,109600.0,0.00506758]
[1756605743881,1.41383042,109610.0,109600.0,0.07522758]
[1756605744082,1.41383015,109610.0,109600.0,0.07522758]
[1756605747827,1.4138181,109610.0,109600.0,0.07522758]
[1756605748481,1.4138181,109610.0,109600.0,0.22998758]
[1756605749999,1.4138181,109610.0,109600.0,0.07522758]
[1756605750222,1.80896733,109610.0,109600.0,0.22496758]
[1756605750826,1.80896733,109610.0,109600.0,0.22492758]
[1756605752100,1.02903026,109610.0,109600.0,0.22492758]
[1756605752313,1.81536872,109610.0,109600.0,0.22795758]
[1756605752500,1.80574273,109610.0,109600.0,0.22795758]
[1756605754630,1.80574273,109610.0,109600.0,0.22500758]
[1756605755222,1.80574273,109610.0,109600.0,0.07020758]
[1756605755388,1.80715273,109610.0,109600.0,4.758e-05]
[1756605755603,1.80715273,109610.0,109600.0,0.15480758]
[1756605756047,1.80715273,109610.0,109600.0,4.758e-05]
[1756605757203,6.51899873,109610.0,109600.0,4.758e-05]
[1756605757409,6.58567924,109610.0,109600.0,4.758e-05]
[1756605757588,6.59503968,109610.0,109600.0,4.758e-05]
[1756605757790,6.68801969,109610.0,109600.0,4.758e-05]
[1756605758213,6.68516328,109610.0,109600.0,4.758e-05]
[1756605758463,6.68804216,109610.0,109600.0,4.758e-05]
[1756605758909,6.62136165,109610.0,109600.0,4.758e-05]
[1756605759555,6.20084262,109610.0,109600.0,4.758e-05]
[1756605760654,6.20084262,109610.0,109600.0,1e-08]
[1756605760655,6.22645848,109610.0,109600.0,1e-08]
[1756605761115,6.22545848,109610.0,109600.0,1e-08]
[1756605761328,6.22645848,109610.0,109600.0,1e-08]
[1756605761548,6.1599948,109610.0,109600.0,1e-08]
[1756605761764,6.3157548,109610.0,109600.0,1e-08]
[1756605761977,6.3158348,109610.0,109600.0,1e-08]
[1756605762652,6.29221894,109610.0,109600.0,1e-08]
[1756605763082,6.20392262,109610.0,109600.0,1e-08]
[1756605763854,6.20388262,109610.0,109600.0,1e-08]
[1756605764069,6.04808262,109610.0,109600.0,1e-08]
[1756605764280,6.22845824,109610.0,109600.0,1e-08]
[1756605765228,6.20388262,109610.0,109600.0,1e-08]
[1756605765417,6.15345008,109610.0,109600.0,1e-08]
[1756605765559,6.18089408,109610.0,109600.0,1e-08]
[1756605767809,6.02368408,109610.0,109600.0,1e-08]
[1756605767992,6.19368743,109610.0,109600.0,1e-08]
[1756605768926,6.17660362,109610.0,109600.0,1e-08]
[1756605769139,6.1936954,109610.0,109600.0,1e-08]
[1756605769547,6.19369458,109610.0,109600.0,1e-08]
[1756605770418,6.26611761,109610.0,109600.0,1e-08]
[1756605770626,6.19369458,109610.0,109600.0,1e-08]
[1756605772434,6.19510458,109610.0,109600.0,1e-08]
[1756605776089,6.19510168,109610.0,109600.0,1e-08]
[1756605777301,6.21730754,109610.0,109600.0,1e-08]
[1756605777486,6.30560386,109610.0,109600.0,1e-08]
[1756605778130,6.30460386,109610.0,109600.0,1e-08]
[1756605778350,6.30560386,109610.0,109600.0,1e-08]
[1756605778997,6.30701386,109610.0,109600.0,1e-08]
[1756605779449,6.14347494,109610.0,109600.0,1e-08]
[1756605779622,6.30529384,109610.0,109600.0,1e-08]
[1756605779922,6.30929384,109610.0,109600.0,1e-08]
[1756605780132,6.30929383,109610.0,109600.0,1e-08]
[1756605780339,6.30929477,109610.0,109600.0,1e-08]
[1756605780577,6.06559845,109610.0,109600.0,0.00503001]
[1756605780787,6.19734259,109610.0,109600.0,0.00503001]
[1756605781215,5.25564413,109610.0,109600.0,0.00503001]
[1756605781427,6.22191821,109610.0,109600.0,1e-08]
[1756605781865,6.06655821,109610.0,109600.0,0.00201001]
[1756605782075,6.04000259,109610.0,109600.0,0.00503001]
[1756605782287,5.68904145,109610.0,109600.0,0.00503001]
[1756605782714,6.02904145,109610.0,109600.0,0.00503001]
[1756605783126,6.02204145,109610.0,109600.0,0.00503001]
[1756605783924,6.02904145,109610.0,109600.0,0.00503001]
[1756605784140,6.02504145,109610.0,109600.0,0.00503001]
[1756605784564,1.46595545,109610.0,109600.0,0.00503001]
[1756605784979,1.46695545,109610.0,109600.0,0.00503001]
[1756605789027,1.46696648,109610.0,109600.0,0.00503001]
[1756605792672,1.4669609,109610.0,109600.0,0.00503001]
[1756605795717,0.95336766,109610.0,109600.0,0.00503001]
[1756605796070,0.94695262,109610.0,109600.0,0.00503001]
[1756605796642,0.9298514,109610.0,109600.0,0.00503001]
[1756605797691,0.9288514,109610.0,109600.0,0.00503001]
[1756605797897,0.9278514,109610.0,109600.0,0.00503001]
[1756605798103,0.92499477,109610.0,109600.0,0.00503001]
[1756605798326,0.92499477,109610.0,109600.0,0.00703001]
[1756605799333,0.92599477,109610.0,109600.0,0.00703001]
[1756605799917,0.92499477,109610.0,109600.0,0.00703001]
[1756605801162,0.92499477,109610.0,109600.0,0.00803001]
[1756605802481,0.92499477,109610.0,109600.0,0.16303001]
[1756605803065,0.92499477,109610.0,109600.0,0.00803001]
[1756605803271,0.92499477,109610.0,109600.0,0.16291001]
[1756605804741,0.92499477,109610.0,109600.0,0.16091001]
[1756605806063,0.92499477,109610.0,109600.0,0.15991001]
[1756605807732,0.92785111,109610.0,109600.0,0.15991001]
[1756605808153,0.92785109,109610.0,109600.0,0.15991001]
[1756605809158,0.92785105,109610.0,109600.0,0.15991001]
[1756605810222,0.92785104,109610.0,109600.0,0.15991001]
[1756605810668,0.92785106,109610.0,109600.0,0.15991001]
[1756605812454,0.92785106,109610.0,109600.0,0.23007001]
[1756605814494,0.92785106,109610.0,109600.0,0.07519001]
[1756605814690,0.92785106,109610.0,109600.0,0.22987001]
[1756605815195,0.92983106,109610.0,109600.0,0.22987001]
[1756605815404,0.92983106,109610.0,109600.0,0.22805001]
[1756605815562,0.92983106,109610.0,109600.0,0.23007001]
[1756605820822,0.53468183,109610.0,109600.0,0.23007001]
[1756605821045,0.92785106,109610.0,109600.0,0.23007001]
[1756605822924,0.53468183,109610.0,109600.0,0.23007001]
[1756605823127,0.92785106,109610.0,109600.0,0.23007001]
[1756605823395,1.12433927,109610.0,109600.0,0.23007001]
[1756605823602,1.12433927,109610.0,109600.0,0.23464001]
[1756605824496,1.14146484,109610.0,109600.0,0.23464001]
[1756605827621,1.14344484,109610.0,109600.0,0.23464001]
[1756605827827,1.14344484,109610.0,109600.0,0.23424001]
[1756605828181,1.14344484,109610.0,109600.0,0.23624001]
[1756605828515,1.14344484,109610.0,109600.0,0.23422001]
[1756605829346,1.14344484,109610.0,109600.0,0.23624001]
[1756605829555,1.14344484,109610.0,109600.0,0.23724001]
[1756605830802,1.14344484,109610.0,109600.0,0.08296001]
[1756605830977,1.14344484,109610.0,109600.0,0.23720001]
[1756605831545,1.1434541,109610.0,109600.0,0.23720001]
[1756605834688,1.1434546,109610.0,109600.0,0.23720001]
[1756605837606,1.14988079,109610.0,109600.0,0.23720001]
[1756605838686,1.14988274,109610.0,109600.0,0.23720001]
[1756605841429,1.14988282,109610.0,109600.0,0.23720001]
[1756605842131,1.14790282,109610.0,109600.0,0.23720001]
[1756605843281,1.14988282,109610.0,109600.0,0.23720001]
[1756605844385,1.14702654,109610.0,109600.0,0.23720001]
[1756605844544,1.14988282,109610.0,109600.0,0.23720001]
[1756605846073,1.14988282,109610.0,109600.0,0.08296001]
[1756605846229,1.14988282,109610.0,109600.0,0.23506001]
[1756605847683,1.14988282,109610.0,109600.0,0.23185001]
[1756605848116,1.14988282,109610.0,109600.0,0.23492001]
[1756605849572,1.14988282,109610.0,109600.0,0.08080001]
[1756605849987,1.14988282,109610.0,109600.0,0.23492001]
[1756605851557,1.14988255,109610.0,109600.0,0.23492001]